fUSD/lending_fUSD_20240117
["ID","MTS","AMOUNT","RATE_DAILY","PERIOD"]
[311882128,1705486256493,-980.42,0.00022191,2]
[311882129,1705486256502,-1475.64,0.00022191,2]
[311882130,1705486256510,-500.0,0.00022191,2]
[311882131,1705486256519,-500.0,0.00022191,2]
[311882132,1705486256528,-500.0,0.00022191,2]
[311882133,1705486256537,-1006.53,0.00022191,2]
[311882134,1705486256545,-500.0,0.00022191,2]
[311882135,1705486256554,-1373.92,0.00022191,2]
[311882136,1705486256563,-543.24,0.00022191,2]
[311882137,1705486256571,-891.89,0.00022191,2]
[311882138,1705486256580,-14558.16,0.00022191,2]
[311882139,1705486256589,-714.76,0.00022191,2]
[311882140,1705486256597,-3015.47,0.00022191,2]
[311882141,1705486256606,-500.0,0.00022191,2]
[311882142,1705486256615,-1056.93,0.00022191,2]
[311882143,1705486256624,-3502.33,0.00022191,2]
[311882144,1705486256633,-592.99,0.00022191,2]
[311882145,1705486256641,-2868.32,0.00022191,2]
[311882146,1705486256650,-500.0,0.00022191,2]
[311882147,1705486256659,-500.0,0.00022191,2]
[311882148,1705486256669,-738.41,0.00022191,2]
[311882149,1705486256678,-2293.16,0.00022191,2]
[311882150,1705486256688,-847.41,0.00022191,2]
[311882151,1705486256697,-4661.96,0.00022191,2]
[311882152,1705486256706,-500.0,0.00022191,2]
[311882153,1705486256716,-246.32240116,0.00022191,2]
[311882154,1705486256725,-1725.35,0.00022191,2]
[311882155,1705486256734,-500.0,0.00022191,2]
[311882156,1705486256743,-500.0,0.00022191,2]
[311882157,1705486256752,-3578.02,0.00022191,2]
[311882158,1705486256761,-530.35297332,0.00022191,2]
[311882159,1705486256770,-881.78,0.00022191,2]
[311882160,1705486256779,-500.0,0.00022191,2]
[311882161,1705486256788,-500.0,0.00022191,2]
[311882162,1705486256797,-1094.66,0.00022191,2]
[311882163,1705486256806,-500.0,0.00022191,2]
[311882164,1705486256815,-514.197498,0.00022191,2]
[311882165,1705486256825,-13759.47,0.00022191,2]
[311882166,1705486256834,-500.0,0.00022191,2]
[311882167,1705486256843,-35388.9,0.00022191,2]
[311882168,1705486256852,-500.0,0.00022191,2]
[311882169,1705486256860,-4047.78,0.00022191,2]
[311882170,1705486256870,-500.0,0.00022191,2]
[311882171,1705486256879,-500.0,0.00022191,2]
[311882172,1705486256888,-764.54,0.00022191,2]
[311882173,1705486256897,-883.69,0.00022191,2]
[311882174,1705486256910,-810.81,0.00022191,2]
[311882175,1705486256920,-647.7,0.00022191,2]
[311882176,1705486256929,-6056.55,0.00022191,2]
[311882177,1705486256938,-500.0,0.00022191,2]
[311882178,1705486256947,-597.5,0.00022191,2]
[311882179,1705486256956,-2349.61,0.00022191,2]
[311882180,1705486256965,-2691.8,0.00022191,2]
[311882181,1705486256974,-735.76,0.00022191,2]
[311882182,1705486256983,-500.0,0.00022191,2]
[311882183,1705486256992,-1546.99,0.00022191,2]
[311882184,1705486257001,-606.18,0.00022191,2]
[311882185,1705486257010,-500.0,0.00022191,2]
[311882186,1705486257019,-598.87,0.00022191,2]
[311882187,1705486257028,-500.0,0.00022191,2]
[311882188,1705486257037,-1057.79,0.00022191,2]
[311882189,1705486257046,-2103.45,0.00022191,2]
[311882190,1705486257055,-5214.93,0.00022191,2]
[311882191,1705486257064,-500.0,0.00022191,2]
[311882192,1705486257073,-1560.25,0.00022191,2]
[311882193,1705486257082,-692.76,0.00022191,2]
[311882194,1705486257094,-576.36,0.00022191,2]
[311882195,1705486257102,-500.0,0.00022191,2]
[311882196,1705486257111,-500.0,0.00022191,2]
[311882197,1705486257121,-1125.72,0.00022191,2]
[311882198,1705486257130,-942.04,0.00022191,2]
[311882199,1705486257139,-2062.46,0.00022191,2]
[311882200,1705486257148,-652.56,0.00022191,2]
[311882201,1705486257157,-7638.56,0.00022191,2]
[311882202,1705486257166,-2085.17,0.00022191,2]
[311882203,1705486257175,-500.0,0.00022191,2]
[311882204,1705486257184,-3997.18,0.00022191,2]
[311882205,1705486257193,-843.52,0.00022191,2]
[311882206,1705486257202,-763.63,0.00022191,2]
[311882207,1705486257211,-500.0,0.00022191,2]
[311882208,1705486257221,-2119.01,0.00022191,2]
[311882209,1705486257232,-6276.55,0.00022191,2]
[311882210,1705486257247,-730.11,0.00022191,2]
[311882211,1705486257256,-928.16,0.00022191,2]
[311882212,1705486257266,-611.82,0.00022191,2]
[311882213,1705486257275,-4679.7,0.00022191,2]
[311882214,1705486257284,-531.36,0.00022191,2]
[311882215,1705486257293,-9712.07,0.00022191,2]
[311882216,1705486257302,-500.0,0.00022191,2]
[311882217,1705486257312,-1575.83,0.00022191,2]
[311882218,1705486257321,-500.54,0.00022191,2]
[311882219,1705486257330,-1391.26,0.00022191,2]
[311882220,1705486257339,-500.0,0.00022191,2]
[311882221,1705486257349,-500.0,0.00022191,2]
[311882222,1705486257358,-500.0,0.00022191,2]
[311882223,1705486257367,-878.91,0.00022191,2]
[311882224,1705486257376,-619.61,0.00022191,2]
[311882225,1705486257386,-842.95,0.00022191,2]
[311882226,1705486257394,-526.35,0.00022191,2]
[311882227,1705486257404,-1999.3,0.00022191,2]
[311882228,1705486257414,-9784.24,0.00022191,2]
[311882229,1705486257424,-962.32,0.00022191,2]
[311882230,1705486257435,-500.0,0.00022191,2]
[311882231,1705486257445,-500.0,0.00022191,2]
[311882232,1705486257454,-500.0,0.00022191,2]
[311882233,1705486257463,-1964.17,0.00022191,2]
[311882234,1705486257473,-5580.02,0.00022191,2]
[311882235,1705486257481,-734.89,0.00022191,2]
[311882236,1705486257491,-179.65753654,0.00022191,2]
[311882237,1705486258251,-9.09246346,0.00022191,2]
[311882238,1705486258262,-1218.7496191,0.00022191,2]
[311882239,1705486258291,-547.08697755,0.00022191,2]
[311882240,1705486258396,-14874.63340335,0.00022191,2]
[311882241,1705486258405,-1871.28,0.00022191,2]
[311882242,1705486258414,-1438.82,0.00022191,2]
[311882243,1705486258425,-956.13,0.00022191,2]
[311882244,1705486258434,-2340.06,0.00022191,2]
[311882245,1705486258443,-500.0,0.00022191,2]
[311882246,1705486258453,-500.0,0.00022191,2]
[311882247,1705486258462,-506.05,0.00022191,2]
[311882248,1705486258472,-2356.94,0.00022191,2]
[311882249,1705486258481,-2134.26,0.00022191,2]
[311882250,1705486258490,-500.0,0.00022191,2]
[311882251,1705486258500,-2855.03,0.00022191,2]
[311882252,1705486258510,-1146.67,0.00022191,2]
[311882253,1705486258519,-500.0,0.00022191,2]
[311882254,1705486258528,-500.0,0.00022191,2]
[311882255,1705486258538,-545.69,0.00022191,2]
[311882256,1705486258547,-500.0,0.00022191,2]
[311882257,1705486258556,-589.79,0.00022191,2]
[311882258,1705486258565,-960.78,0.00022191,2]
[311882259,1705486258575,-5373.68,0.00022191,2]
[311882260,1705486258584,-500.0,0.00022191,2]
[311882261,1705486258593,-1134.53,0.00022191,2]
[311882262,1705486258603,-1984.74,0.00022191,2]
[311882263,1705486258612,-17.03317285,0.00022191,2]
[311882264,1705486258624,-482.96682715,0.00022191,2]
[311882265,1705486258633,-264.65300175,0.00022191,2]
[311882266,1705486259208,150.0,0.00018579,2]
[311882267,1705486259226,-223.66,0.00021116,2]
[311882268,1705486259237,-859.56,0.00021917,2]
[311882269,1705486259247,-926.74,0.00021917,2]
[311882270,1705486259256,-367.88552667,0.00022091,5]
[311882271,1705486259265,-615.59699825,0.00022191,2]
[311882272,1705486259274,-883.81,0.00022191,2]
[311882273,1705486259285,-515.35,0.00022191,2]
[311882274,1705486259295,-4281.6975167,0.00022191,2]
[311882275,1705486259313,-499.00917022,0.00022191,2]
[311882276,1705486259686,-4376.30331308,0.00022191,2]
[311882277,1705486259696,-2086.26,0.00022191,2]
[311882278,1705486259706,-3240.9,0.00022191,2]
[311882279,1705486259715,-2734.25,0.00022191,2]
[311882280,1705486259725,-1327.26,0.00022191,2]
[311882281,1705486259734,-701.3,0.00022191,2]
[311882282,1705486259743,-601.14,0.00022191,2]
[311882283,1705486259753,-500.0,0.00022191,2]
[311882284,1705486259762,-500.0,0.00022191,2]
[311882285,1705486259771,-500.0,0.00022191,2]
[311882286,1705486259780,-1109.49,0.00022191,2]
[311882287,1705486259790,-1226.37,0.00022191,2]
[311882288,1705486259799,-500.0,0.00022191,2]
[311882289,1705486260178,-1382.17,0.00022191,2]
[311882290,1705486260197,-500.0,0.00022191,2]
[311882291,1705486260206,-500.0,0.00022191,2]
[311882292,1705486260216,-500.0,0.00022191,2]
[311882293,1705486260231,-1610.17,0.00022191,2]
[311882294,1705486260244,-500.0,0.00022191,2]
[311882295,1705486260253,-1759.47,0.00022191,2]
[311882296,1705486260263,-500.0,0.00022191,2]
[311882297,1705486260272,-817.53,0.00022191,2]
[311882298,1705486260282,-2115.96,0.00022191,2]
[311882299,1705486260291,-500.0,0.00022191,2]
[311882300,1705486260301,-904.13,0.00022191,2]
[311882301,1705486260310,-500.0,0.00022191,2]
[311882302,1705486260322,-527.98,0.00022191,2]
[311882303,1705486260332,-905.71,0.00022191,2]
[311882304,1705486260342,-500.0,0.00022191,2]
[311882305,1705486260351,-500.0,0.00022191,2]
[311882306,1705486260360,-500.0,0.00022191,2]
[311882307,1705486260369,-500.0,0.00022191,2]
[311882308,1705486260378,-874.11,0.00022191,2]
[311882309,1705486260387,-2873.65,0.00022191,2]
[311882310,1705486260397,-500.0,0.00022191,2]
[311882311,1705486260406,-2477.86,0.00022191,2]
[311882312,1705486260415,-1516.93,0.00022191,2]
[311882313,1705486260425,-500.0,0.00022191,2]
[311882314,1705486260434,-1860.77,0.00022191,2]
[311882315,1705486260445,-1916.44,0.00022191,2]
[311882316,1705486260454,-500.0,0.00022191,2]
[311882317,1705486260465,-748.53,0.00022191,2]
[311882318,1705486260475,-2252.29,0.00022191,2]
[311882319,1705486260485,-983.96,0.00022191,2]
[311882320,1705486260494,-500.0,0.00022191,2]
[311882321,1705486260504,-500.0,0.00022191,2]
[311882322,1705486260513,-3868.77,0.00022191,2]
[311882323,1705486260522,-500.0,0.00022191,2]
[311882324,1705486260532,-1210.83,0.00022191,2]
[311882325,1705486260542,-752.33,0.00022191,2]
[311882326,1705486260552,-4616.68,0.00022191,2]
[311882327,1705486260561,-500.0,0.00022191,2]
[311882328,1705486260571,-512.39,0.00022191,2]
[311882329,1705486260581,-500.0,0.00022191,2]
[311882330,1705486260590,-1469.56,0.00022191,2]
[311882331,1705486260600,-2111.32,0.00022191,2]
[311882332,1705486260610,-1145.03,0.00022191,2]
[311882333,1705486260619,-707.36,0.00022191,2]
[311882334,1705486260629,-888.63,0.00022191,2]
[311882335,1705486260639,-1914.09,0.00022191,2]
[311882336,1705486260649,-500.0,0.00022191,2]
[311882337,1705486260658,-500.0,0.00022191,2]
[311882338,1705486260668,-1255.98,0.00022191,2]
[311882339,1705486260677,-7912.93,0.00022191,2]
[311882340,1705486260689,-500.0,0.00022191,2]
[311882341,1705486260699,-2428.47,0.00022191,2]
[311882342,1705486260711,-500.0,0.00022191,2]
[311882343,1705486260721,-1795.93,0.00022191,2]
[311882344,1705486260731,-500.0,0.00022191,2]
[311882345,1705486260741,-2167.95,0.00022191,2]
[311882346,1705486260750,-500.0,0.00022191,2]
[311882347,1705486260759,-710.63,0.00022191,2]
[311882348,1705486260769,-1224.14,0.00022191,2]
[311882349,1705486260778,-21633.86435066,0.00022191,2]
[311882350,1705486260792,-616.7792413,0.00022191,2]
[311882351,1705486261122,-677.45777158,0.00022191,2]
[311882352,1705486261133,-7623.6216,0.00022191,2]
[311882353,1705486261145,-2211.11703646,0.00022191,2]
[311882354,1705486261155,-500.0,0.00022191,2]
[311882355,1705486261165,-500.0,0.00022191,2]
[311882356,1705486261174,-500.0,0.00022191,2]
[311882357,1705486261186,-2067.21,0.00022191,2]
[311882358,1705486261196,-2022.02,0.00022191,2]
[311882359,1705486261206,-1378.94589073,0.00022191,2]
[311882360,1705486261218,-370.75410927,0.00022191,2]
[311882361,1705486261228,-511.76767724,0.00022191,2]
[311882362,1705486261239,-741.95,0.00022191,2]
[311882363,1705486261249,-524.64,0.00022191,2]
[311882364,1705486261259,-452.47017799,0.00022191,2]
[311882365,1705486261294,-4565.27982201,0.00022191,2]
[311882366,1705486261303,-559.83,0.00022191,2]
[311882367,1705486261313,-1208.59,0.00022191,2]
[311882368,1705486261322,-1255.37,0.00022191,2]
[311882369,1705486261332,-10269.39702077,0.00022191,2]
[311882370,1705486261361,-260.63381433,0.00022191,2]
[311882371,1705486261377,-751.61924546,0.00022191,2]
[311882372,1705486262181,-503.84036235,0.00021916,2]
[311882373,1705486262192,-668.20876961,0.00021916,2]
[311882374,1705486262201,-1370.55086805,0.00022191,2]
[311882375,1705486262219,-1117.24590861,0.00021917,3]
[311882376,1705486262228,-12075.29905139,0.00022191,2]
[311882377,1705486262241,-2695.43,0.00022191,2]
[311882378,1705486262251,-2165.53,0.00022191,2]
[311882379,1705486262261,-2014.93,0.00022191,2]
[311882380,1705486262271,-158.09046455,0.00022191,2]
[311882381,1705486262281,-669.67,0.00022191,2]
[311882382,1705486262290,-542.55,0.00022191,2]
[311882383,1705486262300,-445.44009425,0.00022191,2]
[311882384,1705486262309,-500.0,0.00022191,2]
[311882385,1705486262319,-4101.07,0.00022191,2]
[311882386,1705486262330,-5843.43,0.00022191,2]
[311882387,1705486262338,-1036.51,0.00022191,2]
[311882388,1705486262347,-2431.9,0.00022191,2]
[311882389,1705486262357,-507.88694988,0.00022191,2]
[311882390,1705486262366,-1165.64,0.00022191,2]
[311882391,1705486262375,-1482.1,0.00022191,2]
[311882392,1705486262385,-1530.72,0.00022191,2]
[311882393,1705486262394,-1796.95,0.00022191,2]
[311882394,1705486262403,-1026.87,0.00022191,2]
[311882395,1705486262413,-500.0,0.00022191,2]
[311882396,1705486262422,-500.0,0.00022191,2]
[311882397,1705486262507,-500.0,0.00022191,2]
[311882398,1705486262517,-9367.19,0.00022191,2]
[311882399,1705486262526,-500.0,0.00022191,2]
[311882400,1705486262535,-1885.49,0.00022191,2]
[311882401,1705486262545,-1132.76,0.00022191,2]
[311882402,1705486262555,-2711.91,0.00022191,2]
[311882403,1705486262564,-500.0,0.00022191,2]
[311882404,1705486262573,-3160.99,0.00022191,2]
[311882405,1705486262582,-1711.7,0.00022191,2]
[311882406,1705486262591,-1738.78,0.00022191,2]
[311882407,1705486262600,-248.80054426,0.00022191,2]
[311882408,1705486262613,-1939.42945574,0.00022191,2]
[311882409,1705486262622,-747.46779175,0.00022191,2]
[311882410,1705486262645,-3005.08509301,0.00022189,3]
[311882411,1705486262654,-1266.18220825,0.00022191,2]
[311882412,1705486262663,-500.0,0.00022191,2]
[311882413,1705486262673,-500.0,0.00022191,2]
[311882414,1705486262682,-500.0,0.00022191,2]
[311882415,1705486262693,-500.0,0.00022191,2]
[311882416,1705486262702,-2233.37,0.00022191,2]
[311882417,1705486262711,-1072.98,0.00022191,2]
[311882418,1705486262727,-3302.51,0.00022191,2]
[311882419,1705486262737,-1169.27,0.00022191,2]
[311882420,1705486262746,-500.0,0.00022191,2]
[311882421,1705486262756,-3913.37,0.00022191,2]
[311882422,1705486262765,-1045.11,0.00022191,2]
[311882423,1705486262774,-1675.63,0.00022191,2]
[311882424,1705486262784,-500.0,0.00022191,2]
[311882425,1705486262793,-2196.96,0.00022191,2]
[311882426,1705486262802,-1429.53269868,0.00022191,5]
[311882427,1705486262815,-2487.58730132,0.00022191,5]
[311882428,1705486262824,-525.71,0.00022191,2]
[311882429,1705486262833,-4707.97,0.00022191,2]
[311882430,1705486262842,-500.0,0.00022191,2]
[311882431,1705486262851,-3381.86,0.00022191,2]
[311882432,1705486262860,-516.05349097,0.00022191,2]
[311882433,1705486262869,-945.75,0.00022191,2]
[311882434,1705486262878,-670.03,0.00022191,2]
[311882435,1705486262887,-1801.89,0.00022191,2]
[311882436,1705486262897,-500.0,0.00022191,2]
[311882437,1705486262906,-500.0,0.00022191,2]
[311882438,1705486262915,-2465.13,0.00022191,2]
[311882439,1705486262924,-208.06076444,0.00022191,2]
[311882440,1705486262936,-2044.73923556,0.00022191,2]
[311882441,1705486262946,-6968.21,0.00022191,2]
[311882442,1705486262955,-3067.65,0.00022191,2]
[311882443,1705486262964,-1615.72,0.00022191,2]
[311882444,1705486262973,-3210.13076444,0.00022191,2]
[311882445,1705486262984,-541.0,0.00022191,2]
[311882446,1705486262996,-754.54923556,0.00022191,2]
[311882447,1705486263005,-500.0,0.00022191,2]
[311882448,1705486263014,-500.0,0.00022191,2]
[311882449,1705486263023,-1168.73,0.00022191,2]
[311882450,1705486263032,-500.0,0.00022191,2]
[311882451,1705486263041,-3081.39,0.00022191,2]
[311882452,1705486263050,-500.0,0.00022191,2]
[311882453,1705486263059,-500.0,0.00022191,2]
[311882454,1705486263068,-500.0,0.00022191,2]
[311882455,1705486263077,-983.81,0.00022191,2]
[311882456,1705486263087,-273.45070122,0.00022191,2]
[311882457,1705486263096,-500.0,0.00022191,2]
[311882458,1705486263105,-190.34376574,0.00022191,2]
[311882459,1705486263115,-1065.91747235,0.00022191,2]
[311882460,1705486264601,150.0,0.00018579,2]
[311882461,1705486270824,327.23830946,0.0002219,10]
[311882462,1705486270856,327.23830946,0.0002226,10]
[311882463,1705486270882,327.23830946,0.0002219,10]
[311882464,1705486270910,327.23830947,0.00022464,10]
[311882465,1705486270941,327.23830946,0.0002219,10]
[311882466,1705486270967,327.23830946,0.0002219,10]
[311882467,1705486270997,327.23830946,0.0002219,10]
[311882468,1705486278689,305.42242217,0.00022464,10]
[311882469,1705486278719,305.42242217,0.00022464,10]
[311882470,1705486278756,305.42242217,0.00022464,10]
[311882471,1705486278788,305.42242217,0.00022464,10]
[311882472,1705486278819,305.42242217,0.00022464,10]
[311882473,1705486278850,305.42242215,0.00022738,10]
[311882474,1705486278886,305.42242217,0.00022464,10]
[311882475,1705486278923,305.42242217,0.00022464,10]
[311882476,1705486278950,305.42242217,0.00022464,10]
[311882477,1705486278985,305.42242217,0.00022464,10]
[311882478,1705486351121,326.66,0.00019434,2]
[311882479,1705486385876,500.0,0.00021917,7]
[311882480,1705486395094,294.30842131,0.00023268,7]
[311882481,1705486400103,294.30842131,0.00023501,7]
[311882482,1705486405079,294.30842131,0.00023735,8]
[311882483,1705486503995,205.0,0.00026148,7]
[311882484,1705486621293,500.0,0.00021917,7]
[311882485,1705486796400,327.69,0.00018986,2]
[311882486,1705486833948,206.0,0.00025587,7]
[311882487,1705486907190,171.27,0.00016712,2]
[311882488,1705486929274,988.02,0.00025,30]
[311882489,1705487009145,22882.96502,0.00027,7]
[311882491,1705487090945,171.02,0.00016632,2]
[311882492,1705487144243,151.40117,0.00027,7]
[311882493,1705487145525,151.40117,0.00027,7]
[311882494,1705487146187,151.40117,0.00027,7]
[311882495,1705487146957,151.40117,0.00027,7]
[311882496,1705487147100,151.40117,0.00027,7]
[311882497,1705487147483,151.40117,0.00027,7]
[311882498,1705487147984,151.40117,0.00027,7]
[311882499,1705487148560,151.40117,0.00027,7]
[311882500,1705487149041,151.40117,0.00027,7]
[311882501,1705487155183,151.40117,0.00027,7]
[311882502,1705487170737,234.40117,0.00027,7]
[311882503,1705487193961,205.0,0.00024687,7]
[311882504,1705487216102,-503.84036235,0.00020499,2]
[311882505,1705487216131,-250.0,0.000205,2]
[311882506,1705487216159,-200.0,0.00020617,2]
[311882507,1705487216183,-162.48,0.00020619,2]
[311882508,1705487216210,-205.0,0.00020763,2]
[311882509,1705487216236,-1819.01979953,0.00020825,2]
[311882510,1705487242760,327.79,0.00018922,2]
[311882518,1705487432090,-200.0,0.0002079,2]
[311882519,1705487432100,-180.98020047,0.00020825,2]
[311882520,1705487432109,-170.2092403,0.00020834,2]
[311882521,1705487432151,-260.9007597,0.00020834,2]
[311882522,1705487432161,-154.04,0.0002084,2]
[311882523,1705487432170,-159.79,0.00020865,2]
[311882524,1705487432179,-288.0,0.00020869,2]
[311882525,1705487432191,-158.88,0.00020944,2]
[311882526,1705487432200,-161.1,0.00021032,2]
[311882527,1705487432209,-712.0,0.00021048,2]
[311882528,1705487432218,-2863.65,0.00021083,2]
[311882529,1705487432227,-499.99,0.00021083,2]
[311882530,1705487432236,-159.79,0.00021083,2]
[311882531,1705487432245,-327.79,0.00021186,2]
[311882532,1705487432255,-352.26,0.00021191,2]
[311882533,1705487432264,-159.79,0.000213,2]
[311882534,1705487432274,-392.75,0.00021363,2]
[311882537,1705487432284,-158.88,0.00021363,2]
[311882540,1705487432294,-159.79,0.00021517,2]
[311882542,1705487432304,-160.68,0.00021644,2]
[311882545,1705487432314,-159.79,0.00021735,2]
[311882548,1705487432323,-158.88,0.00021782,2]
[311882551,1705487432333,-431.11,0.00021813,2]
[311882554,1705487432342,-450.516,0.00021814,2]
[311882557,1705487432351,-250.0,0.00021817,2]
[311882559,1705487432360,-5000.0,0.00021817,2]
[311882562,1705487432369,-1061.27743193,0.00021817,2]
[311882564,1705487432378,-6728.94431137,0.00021817,2]
[311882567,1705487432387,-625.0,0.0002186,2]
[311882570,1705487432396,-239.45781888,0.00021907,2]
[311882573,1705487432405,-2048.07201754,0.00021914,3]
[311882575,1705487432414,-8501.02655144,0.00021914,2]
[311882578,1705487432423,-279.07354886,0.00021915,2]
[311882580,1705487432432,-536.22242276,0.00021915,2]
[311882582,1705487432442,-2156.55364457,0.00021915,2]
[311882584,1705487432451,-460.6873615,0.00021915,2]
[311882585,1705487432460,-415.39217419,0.00021915,2]
[311882587,1705487432469,-2143.50853805,0.00021916,2]
[311882589,1705487432478,-2704.17548496,0.00021916,2]
[311882591,1705487432486,-576.59,0.00021916,2]
[311882593,1705487432496,-34.59775674,0.00021917,2]
[311882595,1705487432513,-5814.93016729,0.00021917,2]
[311882597,1705487432524,-879.4163873,0.00021917,2]
[311882599,1705487432533,-500.0,0.00021917,2]
[311882601,1705487432542,-500.0,0.00021917,2]
[311882603,1705487432550,-375.46377811,0.00021917,2]
[311882605,1705487432559,-500.0,0.00021917,2]
[311882607,1705487432568,-500.0,0.00021917,2]
[311882608,1705487432577,-646.98,0.00021917,2]
[311882610,1705487432586,-500.0,0.00021917,2]
[311882612,1705487432596,-500.0,0.00021917,2]
[311882614,1705487432608,-523.69372892,0.00021917,2]
[311882616,1705487432618,-500.0,0.00021917,2]
[311882618,1705487432627,-500.0,0.00021917,2]
[311882620,1705487432636,-500.0,0.00021917,2]
[311882621,1705487432646,-500.0,0.00021917,2]
[311882623,1705487432655,-500.0,0.00021917,2]
[311882625,1705487432665,-500.0,0.00021917,2]
[311882627,1705487432674,-507.28310145,0.00021917,2]
[311882629,1705487432685,-500.0,0.00021917,2]
[311882631,1705487432696,-502.33377622,0.00021917,2]
[311882632,1705487432705,-560.89,0.00021917,2]
[311882634,1705487432714,-500.0,0.00021917,2]
[311882636,1705487432723,-500.0,0.00021917,2]
[311882637,1705487432732,-500.0,0.00021917,2]
[311882638,1705487432742,-500.0,0.00021917,2]
[311882639,1705487432751,-147.86893844,0.00021917,2]
[311882640,1705487432764,-352.13106156,0.00021917,2]
[311882641,1705487432774,-500.0,0.00021917,2]
[311882642,1705487432783,-500.0,0.00021917,2]
[311882643,1705487432792,-500.0,0.00021917,2]
[311882644,1705487432802,-533.6,0.00021917,2]
[311882645,1705487432812,-500.0,0.00021917,2]
[311882646,1705487432821,-500.0,0.00021917,2]
[311882647,1705487432831,-500.0,0.00021917,2]
[311882648,1705487432840,-500.0,0.00021917,2]
[311882650,1705487432849,-520.75003734,0.00021917,2]
[311882652,1705487432859,-500.0,0.00021917,2]
[311882654,1705487432868,-500.0,0.00021917,2]
[311882656,1705487432878,-500.0,0.00021917,2]
[311882658,1705487432887,-500.0,0.00021917,2]
[311882660,1705487432896,-500.0,0.00021917,2]
[311882662,1705487432905,-500.0,0.00021917,2]
[311882664,1705487432914,-657.09,0.00021917,2]
[311882666,1705487432924,-1646.81,0.00021917,2]
[311882668,1705487432933,-500.0,0.00021917,2]
[311882670,1705487432942,-500.0,0.00021917,2]
[311882672,1705487432952,-500.0,0.00021917,2]
[311882674,1705487432961,-810.5,0.00021917,2]
[311882676,1705487432970,-500.0,0.00021917,2]
[311882678,1705487432979,-500.0,0.00021917,2]
[311882679,1705487432988,-788.29,0.00021917,2]
[311882681,1705487432997,-506.50877696,0.00021917,2]
[311882684,1705487433009,-857.89,0.00021917,2]
[311882686,1705487433018,-500.0,0.00021917,2]
[311882688,1705487433028,-500.0,0.00021917,2]
[311882689,1705487433037,-576.91,0.00021917,2]
[311882692,1705487433046,-500.0,0.00021917,2]
[311882693,1705487433055,-500.0,0.00021917,2]
[311882696,1705487433064,-500.0,0.00021917,2]
[311882698,1705487433074,-500.0,0.00021917,2]
[311882700,1705487433083,-505.39662963,0.00021917,2]
[311882702,1705487433092,-504.83952334,0.00021917,2]
[311882704,1705487433101,-1009.91,0.00021917,2]
[311882706,1705487433111,-500.0,0.00021917,2]
[311882708,1705487433120,-500.0,0.00021917,2]
[311882710,1705487433129,-500.0,0.00021917,2]
[311882712,1705487433138,-500.0,0.00021917,2]
[311882714,1705487433147,-511.61,0.00021917,2]
[311882716,1705487433157,-500.0,0.00021917,2]
[311882718,1705487433166,-500.0,0.00021917,2]
[311882720,1705487433175,-500.0,0.00021917,2]
[311882722,1705487433186,-500.0,0.00021917,2]
[311882723,1705487433196,-500.0,0.00021917,2]
[311882724,1705487433206,-510.25775121,0.00021917,2]
[311882725,1705487433216,-500.0,0.00021917,2]
[311882726,1705487433225,-500.0,0.00021917,2]
[311882727,1705487433234,-500.0,0.00021917,2]